[Event "51st La Roda Open 2025"]
[Site "La Roda"]
[Date "2025.04.17"]
[Round "5.1"]
[White "Albornoz Cabrera, Carlos Daniel"]
[Black "Fier, Alexandr"]
[Result "1/2-1/2"]
[Annotator "TA"]
[ECO "D24"]
[WhiteElo "2561"]
[BlackElo "2534"]
[PlyCount "41"]
[EventDate "2025.04.15"]
[EventType "swiss"]
[EventCountry "ESP"]
[SourceTitle "playchess.com"]
[Source "ChessBase"]
[SourceQuality "1"]
[TimeControl "5400+30"]

{[%evp 9,28,13,60,50,47,39,38,40,37,41,63,29,31,31,49,14,0,2,44,37,45]} 1. Nf3 {[%emt 0:00:02]} d5 {[%emt 0:00:40]} 2. d4 {[%emt 0:00:06]} Nf6 {[%emt 0:00:05][%cal Bg8f6,Bf6d5,Bd5b6][%mdl 32]} 3. c4 {[%emt 0:00:03]} e6 {[%emt 0:00:06]} 4. Nc3 {[%emt 0:00:11]} dxc4 {[%emt 0:00:05]} 5. e4 {[%emt 0:01:44][%cal Be2e4,Be4e5][%mdl 32]} b5 {[%emt 0:00:04]} 6. e5 $1 $14 {[%emt 0:00:04] D24: Queen's Gambit Accepted: 3 Nf3 Nf6 4 Nc3.} Nd5 {[%emt 0:00:03]} 7. Nxb5 {[%emt 0:00:04]} Nb6 {[%emt 0:00:04]} 8. Be2 {[%emt 0:00:26]} Nc6 {[%emt 0:00:04]} 9. O-O {[%emt 0:00:20]} Be7 {[%emt 0:00:12] Dodges Bg5} 10. Qd2 {[%emt 0:00:41] White is more active.} Bb7 {[%emt 0:00:05]} 11. Rd1 {[%emt 0:02:27]} Qd7 {[%emt 0:00:05]} 12. b3 {[%emt 0:14:50]} cxb3 {[%emt 0:01:22]} 13. axb3 {[%emt 0:00:04]} a6 {[%emt 0:00:14]} 14. Nc3 {[%emt 0:00:55]} Nb4 {[%emt 0:00:06] Weighted Error Value: White=0.08 (flawless) /Black=0.12 (very precise)   Inaccurate:     	White=2     	Black=1      OK:         	White=2     	Black=5      Best:        	White=1     	---} 15. Ba3 $146 O-O 16. Na4 Nxa4 17. Bxb4 Bxb4 18. Qxb4 Nb6 19. Ra5 Rfd8 20. h4 h6 21. h5 {½-½ Indjic,A (2612)-Oparin,G (2654) FIDE Grand Swiss 2021 (4)} 1/2-1/2

[Event "51st La Roda Open 2025"]
[Site "La Roda"]
[Date "2025.04.17"]
[Round "5.2"]
[White "Pranav Vijay"]
[Black "Gomez Falagan, Daniel"]
[Result "1-0"]
[Annotator "RC"]
[ECO "C07"]
[WhiteElo "2252"]
[BlackElo "2254"]
[PlyCount "159"]
[EventDate "2025.04.15"]
[EventType "swiss"]
[EventCountry "ESP"]
[SourceTitle "playchess.com"]
[Source "ChessBase"]
[SourceQuality "1"]
[TimeControl "5400+30"]

1. e4 {[%emt 0:02:28]} e6 {[%emt 0:00:09]} 2. d4 {[%emt 0:00:07]} d5 {[%emt 0:00:07]} 3. Nd2 {[%emt 0:00:05]} c5 {[%emt 0:00:07]} 4. Ngf3 {[%emt 0:00:05]} cxd4 {[%emt 0:00:10]} 5. Nxd4 {[%emt 0:00:08]} Nc6 {[%emt 0:00:09]} 6. Bb5 {[%emt 0:00:13]} Bd7 {[%emt 0:00:15]} 7. Nxc6 {[%emt 0:00:06]} bxc6 {[%emt 0:00:10]} 8. Bd3 {[%emt 0:00:04]} Qc7 {[%emt 0:00:13]} 9. Qe2 {[%emt 0:00:09]} Ne7 {[%emt 0:00:30]} 10. Nf3 {[%emt 0:03:49]} Ng6 {[%emt 0:00:23]} 11. e5 {[%emt 0:01:02]} f6 {[%emt 0:01:24]} 12. Bxg6+ {[%emt 0:07:54]} hxg6 {[%emt 0:00:13]} 13. O-O {[%emt 0:00:15]} Kf7 {[%emt 0:05:58]} 14. c4 {[%emt 0:02:33]} Be7 {[%emt 0:06:15]} 15. Re1 {[%emt 0:13:48]} g5 {[%emt 0:06:05]} 16. h3 {[%emt 0:00:44]} Qb7 {[%emt 0:11:12]} 17. Bd2 {[%emt 0:11:45]} Rad8 {[%emt 0:06:12]} 18. b3 {[%emt 0:03:50]} c5 {[%emt 0:14:40]} 19. cxd5 {[%emt 0:06:15]} Qxd5 {[%emt 0:00:09]} 20. Rad1 {[%emt 0:04:59]} Qb7 {[%emt 0:00:19]} 21. exf6 {[%emt 0:02:52]} gxf6 {[%emt 0:00:38]} 22. Bc3 {[%emt 0:00:06]} Rh6 {[%emt 0:02:19]} 23. Nh2 {[%emt 0:11:07]} Bc8 {[%emt 0:03:55]} 24. Rxd8 {[%emt 0:01:34]} Bxd8 {[%emt 0:00:05]} 25. Ng4 {[%emt 0:02:25]} Rg6 {[%emt 0:05:34]} 26. Bb2 {[%emt 0:06:01]} Be7 {[%emt 0:01:38]} 27. Ba3 {[%emt 0:00:56]} Qc6 {[%emt 0:04:25]} 28. Rc1 {[%emt 0:01:17]} Bb7 {[%emt 0:00:09]} 29. f3 {[%emt 0:00:50]} Bd6 {[%emt 0:01:55]} 30. Kh1 {[%emt 0:01:48]} Qd5 {[%emt 0:02:34]} 31. Rd1 {[%emt 0:05:37]} Qc6 {[%emt 0:00:07]} 32. Qd3 {[%emt 0:00:56]} Be7 {[%emt 0:01:29]} 33. Qd7 {[%emt 0:00:06]} Rg7 {[%emt 0:03:04]} 34. Qxc6 {[%emt 0:01:39]} Bxc6 {[%emt 0:00:05]} 35. Rc1 {[%emt 0:00:03]} Kg6 {[%emt 0:01:10]} 36. Bxc5 {[%emt 0:00:05]} Bxc5 {[%emt 0:00:13]} 37. Rxc5 {[%emt 0:00:02]} Bb7 {[%emt 0:00:17]} 38. Rc2 {[%emt 0:02:16]} Rd7 {[%emt 0:00:55]} 39. Kg1 {[%emt 0:00:10]} e5 {[%emt 0:01:23]} 40. Kf2 {[%emt 0:01:17]} e4 {[%emt 0:01:11]} 41. fxe4 {[%emt 0:00:43]} Bxe4 {[%emt 0:00:06]} 42. Re2 {[%emt 0:00:21]} Bb7 {[%emt 0:01:24]} 43. Ke1 {[%emt 0:03:01]} Rd6 {[%emt 0:00:09]} 44. Ne3 {[%emt 0:01:26]} Re6 {[%emt 0:00:22]} 45. Kf2 {[%emt 0:00:38]} f5 {[%emt 0:02:03]} 46. Rd2 {[%emt 0:01:27]} Be4 {[%emt 0:02:20]} 47. Nc4 {[%emt 0:00:47]} Kf6 {[%emt 0:01:12]} 48. Rd4 {[%emt 0:02:29]} Ra6 {[%emt 0:01:33]} 49. a4 {[%emt 0:01:27]} Bc2 {[%emt 0:01:07]} 50. Nd2 {[%emt 0:00:02]} Rb6 {[%emt 0:03:21]} 51. a5 {[%emt 0:00:00]} Rb5 {[%emt 0:00:08]} 52. b4 {[%emt 0:00:04]} Ke6 {[%emt 0:01:40]} 53. Nf3 {[%emt 0:00:38]} Kf6 {[%emt 0:03:37]} 54. Rd6+ {[%emt 0:00:33]} Ke7 {[%emt 0:00:17]} 55. Ra6 {[%emt 0:00:28]} Rb7 {[%emt 0:00:40]} 56. Nxg5 {[%emt 0:01:50]} Bd3 {[%emt 0:00:06]} 57. Re6+ {[%emt 0:00:26]} Kd7 {[%emt 0:03:44]} 58. Re3 {[%emt 0:00:53]} Bc4 {[%emt 0:00:37]} 59. Re5 {[%emt 0:00:06]} f4 {[%emt 0:00:19]} 60. Re4 {[%emt 0:01:07]} Rxb4 {[%emt 0:00:08]} 61. Rxf4 {[%emt 0:00:05]} Rb2+ {[%emt 0:00:06]} 62. Kg3 {[%emt 0:00:12]} Bd5 {[%emt 0:00:05]} 63. Nf3 {[%emt 0:01:18]} Ra2 {[%emt 0:00:05]} 64. Rf5 {[%emt 0:00:31]} Rxa5 {[%emt 0:00:44]} 65. h4 {[%emt 0:00:25]} Ke6 {[%emt 0:00:25]} 66. Rf4 {[%emt 0:00:04]} Rc5 {[%emt 0:02:13]} 67. Ng5+ {[%emt 0:00:45]} Ke5 {[%emt 0:00:25]} 68. Nf3+ {[%emt 0:00:35]} Ke6 {[%emt 0:00:07]} 69. Kg4 {[%emt 0:00:39]} Rc8 {[%emt 0:01:04]} 70. h5 {[%emt 0:00:20]} Rg8+ {[%emt 0:00:55]} 71. Ng5+ {[%emt 0:00:05]} Ke5 {[%emt 0:00:09]} 72. g3 {[%emt 0:00:24]} Bb3 {[%emt 0:05:10]} 73. Rf5+ {[%emt 0:00:27]} Kd4 {[%emt 0:00:26]} 74. Ra5 {[%emt 0:00:17]} Rh8 {[%emt 0:01:36]} 75. Kh4 {[%emt 0:00:35]} Bd1 {[%emt 0:00:10]} 76. g4 {[%emt 0:00:10]} Ra8 {[%emt 0:01:26]} 77. h6 {[%emt 0:00:05]} Bc2 {[%emt 0:00:36]} 78. h7 {[%emt 0:00:10]} Ke3 {[%emt 0:00:38]} 79. Rxa7 {[%emt 0:00:08]} Rh8 {[%emt 0:00:05]} 80. Rg7 {[%emt 0:00:11]} 1-0

[Event "51st La Roda Open 2025"]
[Site "La Roda"]
[Date "2025.04.17"]
[Round "5.3"]
[White "Valmana Canto, Jaime"]
[Black "Gumularz, Szymon"]
[Result "1/2-1/2"]
[Annotator "TA"]
[ECO "B11"]
[WhiteElo "2385"]
[BlackElo "2604"]
[PlyCount "41"]
[EventDate "2025.04.15"]
[EventType "swiss"]
[EventCountry "ESP"]
[SourceTitle "playchess.com"]
[Source "ChessBase"]
[SourceQuality "1"]
[TimeControl "5400+30"]

{[%evp 10,41,35,0,0,0,20,18,39,21,35,39,56,59,55,30,23,11,42,41,51,53,52,19,51,50,56,34,40,43,68,57,70,51]} 1. e4 {[%emt 0:04:57]} c6 {[%emt 0:00:06]} 2. Nc3 {[%emt 0:01:28]} d5 {[%emt 0:00:07]} 3. Nf3 {[%emt 0:00:05]} Bg4 {[%emt 0:00:07]} 4. h3 {[%emt 0:00:05]} Bxf3 {[%emt 0:00:07]} 5. Qxf3 {[%emt 0:00:05]} e6 {[%emt 0:00:07]} 6. g3 {[%emt 0:00:19]} Bc5 {[%emt 0:07:23] B11: Caro-Kann: Two Knights Variation.} 7. Bg2 {[%emt 0:00:48]} Nd7 {[%emt 0:00:09]} 8. Qe2 {[%emt 0:00:17]} d4 $146 {[%emt 0:11:31] The position is equal.} (8... Ne7 9. O-O O-O 10. d3 f5 11. exd5 exd5 12. Na4 Ng6 13. Nxc5 Nxc5 14. f4 Qf6 {½-½ Kevlishvili,R (2521)-Jumabayev,R (2585) Qatar Masters op 2023 (7)}) 9. Nb1 {[%emt 0:00:09][%cal Bc3b1,Bb1d2,Bd2f3][%mdl 32]} h5 {[%emt 0:00:07]} 10. h4 {[%emt 0:06:01]} e5 {[%emt 0:00:37]} 11. d3 {[%emt 0:01:59]} a5 {[%emt 0:01:42]} 12. Nd2 {[%emt 0:06:40]} a4 {[%emt 0:00:10]} 13. a3 {[%emt 0:00:08]} Ne7 {[%emt 0:05:00][%cal Bg8e7,Be7g6,Bg6f8,Bf8e6][%mdl 32]} 14. Nf3 {[%emt 0:09:36]} Ng6 {[%emt 0:02:34]} 15. Ng5 {[%emt 0:06:07]} Qe7 {[%emt 0:01:07]} 16. Bd2 {[%emt 0:02:34]} Bd6 {[%emt 0:00:23]} 17. O-O {[%emt 0:00:36] White is slightly better.} c5 {[%emt 0:02:24]} 18. c4 {[%emt 0:04:10]} f6 {[%emt 0:09:49]} 19. Nh3 {[%emt 0:01:05]} Ngf8 {[%emt 0:00:16]} 20. f4 {[%emt 0:00:24] White is more active.} Ne6 {[%emt 0:01:42]} 21. Rab1 {[%emt 0:06:56] Weighted Error Value: White=0.09 (flawless) /Black=0.13 (very precise)   Inaccurate:     	White=1     	Black=2      OK:         	White=7     	---} 1/2-1/2

[Event "51st La Roda Open 2025"]
[Site "La Roda"]
[Date "2025.04.17"]
[Round "5.4"]
[White "Suleymenov, Alisher"]
[Black "Perez Travieso, Saul"]
[Result "1-0"]
[Annotator "RC"]
[ECO "E14"]
[WhiteElo "2478"]
[BlackElo "2111"]
[PlyCount "105"]
[EventDate "2025.04.15"]
[EventType "swiss"]
[EventCountry "ESP"]
[SourceTitle "playchess.com"]
[Source "ChessBase"]
[SourceQuality "1"]
[TimeControl "5400+30"]

1. d4 {[%emt 0:00:03]} Nf6 {[%emt 0:00:13]} 2. c4 {[%emt 0:00:04]} e6 {[%emt 0:00:05]} 3. Nf3 {[%emt 0:00:06]} Bb4+ {[%emt 0:00:06]} 4. Nbd2 {[%emt 0:03:12]} b6 {[%emt 0:00:28]} 5. a3 {[%emt 0:00:06]} Bxd2+ {[%emt 0:00:06]} 6. Qxd2 {[%emt 0:00:04]} Bb7 {[%emt 0:00:25]} 7. e3 {[%emt 0:00:15]} O-O {[%emt 0:00:31]} 8. Be2 {[%emt 0:00:29]} d6 {[%emt 0:02:26]} 9. b4 {[%emt 0:04:26]} Ne4 {[%emt 0:03:01]} 10. Qc2 {[%emt 0:00:07]} Nd7 {[%emt 0:01:19]} 11. O-O {[%emt 0:10:03]} f5 {[%emt 0:03:11]} 12. Rd1 {[%emt 0:11:42]} Rf6 {[%emt 0:11:20]} 13. d5 {[%emt 0:02:09]} Rg6 {[%emt 0:07:15]} 14. dxe6 {[%emt 0:13:25]} Nf8 {[%emt 0:04:08]} 15. c5 {[%emt 0:02:25]} Nxe6 {[%emt 0:02:08]} 16. c6 {[%emt 0:01:14]} Bc8 {[%emt 0:00:08]} 17. Bc4 {[%emt 0:04:18]} Kh8 {[%emt 0:01:02]} 18. Ne5 {[%emt 0:01:55]} Rf6 {[%emt 0:05:15]} 19. f3 {[%emt 0:07:22]} N4g5 {[%emt 0:02:12]} 20. h4 {[%emt 0:01:55]} Nf7 {[%emt 0:01:01]} 21. Nd7 {[%emt 0:08:22]} Bxd7 {[%emt 0:03:25]} 22. cxd7 {[%emt 0:00:05]} Rh6 {[%emt 0:10:19]} 23. Qxf5 {[%emt 0:04:04]} Qxd7 {[%emt 0:02:25]} 24. Bb2 {[%emt 0:00:12]} Rf8 {[%emt 0:02:48]} 25. Rac1 {[%emt 0:03:10]} Nfd8 {[%emt 0:01:32]} 26. Qg4 {[%emt 0:02:46]} Qe7 {[%emt 0:04:09]} 27. h5 {[%emt 0:02:07]} c6 {[%emt 0:10:40]} 28. Bxe6 {[%emt 0:01:53]} Rxe6 {[%emt 0:00:31]} 29. e4 {[%emt 0:00:19]} c5 {[%emt 0:03:23]} 30. Rd5 {[%emt 0:01:37]} Rh6 {[%emt 0:04:51]} 31. Rcd1 {[%emt 0:00:52]} Rg8 {[%emt 0:07:09]} 32. bxc5 {[%emt 0:01:06]} bxc5 {[%emt 0:00:10]} 33. Qf4 {[%emt 0:05:04]} Nf7 {[%emt 0:01:19]} 34. Rf5 {[%emt 0:03:01]} Qb7 {[%emt 0:00:46]} 35. Ba1 {[%emt 0:04:52]} Qb3 {[%emt 0:02:02]} 36. Re1 {[%emt 0:01:49]} Ne5 {[%emt 0:02:43]} 37. Bxe5 {[%emt 0:00:04]} dxe5 {[%emt 0:00:03]} 38. Qxe5 {[%emt 0:00:06]} c4 {[%emt 0:01:08]} 39. Qc5 {[%emt 0:00:07]} Ra6 {[%emt 0:01:19]} 40. Rc1 {[%emt 0:02:05]} Ra5 {[%emt 0:02:15]} 41. Qxa5 {[%emt 0:00:47]} Qe3+ {[%emt 0:00:03]} 42. Kh2 {[%emt 0:00:04]} Qxc1 {[%emt 0:00:03]} 43. Qxa7 {[%emt 0:00:34]} c3 {[%emt 0:00:18]} 44. Qc7 {[%emt 0:00:14]} c2 {[%emt 0:01:28]} 45. Rc5 {[%emt 0:00:05]} Qe1 {[%emt 0:00:11]} 46. Kh3 {[%emt 0:00:51]} Qh1+ {[%emt 0:01:12]} 47. Kg3 {[%emt 0:00:01]} Qe1+ {[%emt 0:00:24]} 48. Kg4 {[%emt 0:00:15]} h6 {[%emt 0:01:00]} 49. Rxc2 {[%emt 0:00:23]} g6 {[%emt 0:00:31]} 50. Qe5+ {[%emt 0:01:32]} Rg7 {[%emt 0:00:06]} 51. Rc7 {[%emt 0:00:24]} gxh5+ {[%emt 0:00:10]} 52. Kf5 {[%emt 0:00:06]} Qxe4+ 53. Kxe4 1-0

[Event "51st La Roda Open 2025"]
[Site "La Roda"]
[Date "2025.04.17"]
[Round "5.5"]
[White "Nomindalai Tumurbaatar"]
[Black "Lopez Martinez, Josep Manuel"]
[Result "0-1"]
[Annotator "RC"]
[ECO "E11"]
[WhiteElo "2211"]
[BlackElo "2460"]
[PlyCount "50"]
[EventDate "2025.04.15"]
[EventType "swiss"]
[EventCountry "ESP"]
[SourceTitle "playchess.com"]
[Source "ChessBase"]
[SourceQuality "1"]
[TimeControl "5400+30"]

1. d4 {[%emt 0:00:02]} Nf6 {[%emt 0:01:21]} 2. c4 {[%emt 0:00:23]} e6 {[%emt 0:01:18]} 3. g3 {[%emt 0:00:22]} d5 {[%emt 0:04:02]} 4. Nf3 {[%emt 0:00:18]} Bb4+ {[%emt 0:02:14]} 5. Bd2 {[%emt 0:00:13]} Be7 {[%emt 0:00:38]} 6. Bg2 {[%emt 0:00:25]} O-O {[%emt 0:00:34]} 7. O-O {[%emt 0:00:10]} c6 {[%emt 0:00:27]} 8. Qc2 {[%emt 0:00:26]} a5 {[%emt 0:01:16]} 9. Rd1 {[%emt 0:05:34]} b6 {[%emt 0:04:43]} 10. Nc3 {[%emt 0:26:36]} Ba6 {[%emt 0:12:57]} 11. b3 {[%emt 0:11:48]} Nbd7 {[%emt 0:02:41]} 12. Bf4 {[%emt 0:12:44]} Rc8 {[%emt 0:05:47]} 13. a3 {[%emt 0:28:16]} h6 {[%emt 0:15:26]} 14. e4 {[%emt 0:09:42]} dxc4 {[%emt 0:01:05]} 15. Qe2 {[%emt 0:00:15]} b5 {[%emt 0:01:59]} 16. bxc4 {[%emt 0:00:04]} bxc4 {[%emt 0:00:09]} 17. d5 {[%emt 0:00:58]} cxd5 {[%emt 0:03:24]} 18. exd5 {[%emt 0:00:34]} exd5 {[%emt 0:00:34]} 19. Nh4 {[%emt 0:00:37]} Re8 {[%emt 0:00:47]} 20. Qd2 {[%emt 0:00:29]} Bf8 {[%emt 0:06:25]} 21. Nxd5 {[%emt 0:00:30]} Nc5 {[%emt 0:00:24]} 22. Qc3 {[%emt 0:00:32]} Nfe4 {[%emt 0:00:55]} 23. Qc2 {[%emt 0:00:31]} Nd3 {[%emt 0:00:26]} 24. Bxe4 {[%emt 0:00:30]} Rxe4 {[%emt 0:00:14]} 25. Nc3 {[%emt 0:00:22]} Rxf4 {[%emt 0:00:21]} 0-1

[Event "51st La Roda Open 2025"]
[Site "La Roda"]
[Date "2025.04.17"]
[Round "5.6"]
[White "Kanov, Nikola"]
[Black "Gonzalez Castillo, Jose Javier"]
[Result "1-0"]
[Annotator "RC"]
[ECO "B03"]
[WhiteElo "2413"]
[BlackElo "2297"]
[PlyCount "55"]
[EventDate "2025.04.15"]
[EventType "swiss"]
[EventCountry "ESP"]
[SourceTitle "playchess.com"]
[Source "ChessBase"]
[SourceQuality "1"]
[TimeControl "5400+30"]

1. e4 {[%emt 0:00:02]} Nf6 {[%emt 0:01:33]} 2. e5 {[%emt 0:01:14]} Nd5 {[%emt 0:00:06]} 3. d4 {[%emt 0:00:33]} d6 {[%emt 0:00:14]} 4. c4 {[%emt 0:00:18]} Nb6 {[%emt 0:00:13]} 5. exd6 {[%emt 0:00:16]} cxd6 {[%emt 0:00:29]} 6. Nc3 {[%emt 0:00:27]} g6 {[%emt 0:00:26]} 7. Be3 {[%emt 0:01:39]} Bg7 {[%emt 0:00:20]} 8. Rc1 {[%emt 0:01:10]} O-O {[%emt 0:02:18]} 9. h3 {[%emt 0:04:05]} d5 {[%emt 0:07:01]} 10. c5 {[%emt 0:01:31]} Nc4 {[%emt 0:01:32]} 11. Bxc4 {[%emt 0:13:56]} dxc4 {[%emt 0:00:18]} 12. Nge2 {[%emt 0:09:01]} Bf5 {[%emt 0:02:14]} 13. Qa4 {[%emt 0:02:29]} Bd3 {[%emt 0:03:43]} 14. O-O {[%emt 0:01:11]} e6 {[%emt 0:09:47]} 15. Rfd1 {[%emt 0:01:32]} Nc6 {[%emt 0:14:25]} 16. b3 {[%emt 0:03:42]} Bxe2 {[%emt 0:05:07]} 17. Nxe2 {[%emt 0:00:06]} cxb3 {[%emt 0:00:03]} 18. axb3 {[%emt 0:00:21]} a5 {[%emt 0:04:07]} 19. Qb5 {[%emt 0:05:33]} Qe7 {[%emt 0:04:20]} 20. d5 {[%emt 0:09:20]} exd5 {[%emt 0:00:24]} 21. Rxd5 {[%emt 0:00:24]} Ne5 {[%emt 0:10:01]} 22. Rcd1 {[%emt 0:01:57]} Rfe8 {[%emt 0:06:11]} 23. Nf4 {[%emt 0:02:04]} Qh4 {[%emt 0:02:57]} 24. Rd6 {[%emt 0:04:21]} Nc6 {[%emt 0:09:16]} 25. Qxb7 {[%emt 0:03:12]} Nb4 {[%emt 0:01:26]} 26. g3 {[%emt 0:03:40]} Qh6 {[%emt 0:02:40]} 27. c6 {[%emt 0:06:41]} Be5 {[%emt 0:02:23]} 28. Nxg6 {[%emt 0:02:39]} 1-0

[Event "51st La Roda Open 2025"]
[Site "La Roda"]
[Date "2025.04.17"]
[Round "5.7"]
[White "Diez Fraile, David"]
[Black "Yordanov, Lachezar"]
[Result "0-1"]
[Annotator "RC"]
[ECO "B23"]
[WhiteElo "2116"]
[BlackElo "2364"]
[PlyCount "92"]
[EventDate "2025.04.15"]
[EventType "swiss"]
[EventCountry "ESP"]
[SourceTitle "playchess.com"]
[Source "ChessBase"]
[SourceQuality "1"]
[TimeControl "5400+30"]

1. e4 {[%emt 0:00:03]} c5 {[%emt 0:05:55]} 2. Nc3 {[%emt 0:00:18]} d6 {[%emt 0:00:14]} 3. d4 {[%emt 0:00:20]} cxd4 {[%emt 0:00:18]} 4. Qxd4 {[%emt 0:00:06]} Nc6 {[%emt 0:00:08]} 5. Qd2 {[%emt 0:01:04]} g6 {[%emt 0:00:08]} 6. b3 {[%emt 0:01:41]} Bh6 {[%emt 0:00:16]} 7. f4 {[%emt 0:01:16]} Nf6 {[%emt 0:00:06]} 8. Bb2 {[%emt 0:01:13]} O-O {[%emt 0:01:18]} 9. O-O-O {[%emt 0:01:31]} e5 {[%emt 0:00:06]} 10. g3 {[%emt 0:01:45]} Re8 {[%emt 0:00:22]} 11. Kb1 {[%emt 0:02:04]} Nd4 {[%emt 0:06:19]} 12. Nge2 {[%emt 0:12:24]} Bg4 {[%emt 0:02:19]} 13. Nxd4 {[%emt 0:14:47]} exd4 {[%emt 0:23:39]} 14. Qxd4 {[%emt 0:02:20]} Bxd1 {[%emt 0:08:42]} 15. Qxd1 {[%emt 0:06:01]} Bg7 {[%emt 0:01:52]} 16. Bg2 {[%emt 0:11:45]} Qb6 {[%emt 0:46:48]} 17. Re1 {[%emt 0:15:50]} Rac8 {[%emt 0:00:00]} 18. Bh3 {[%emt 0:08:41]} Rxc3 {[%emt 0:00:00]} 19. Bxc3 {[%emt 0:00:55]} Nxe4 {[%emt 0:00:00]} 20. Bb2 {[%emt 0:04:34]} Qf2 {[%emt 0:00:00]} 21. Kc1 {[%emt 0:05:10]} d5 {[%emt 0:00:00]} 22. Re2 {[%emt 0:02:19]} Qc5 {[%emt 0:00:00]} 23. Bg2 {[%emt 0:01:26]} Bxb2+ {[%emt 0:00:00]} 24. Kxb2 {[%emt 0:00:03]} Qc3+ {[%emt 0:00:00]} 25. Kb1 {[%emt 0:01:36]} Re6 {[%emt 0:00:00]} 26. Bxe4 {[%emt 0:00:56]} Rxe4 {[%emt 0:00:00]} 27. Qd2 {[%emt 0:00:52]} Qc5 {[%emt 0:00:00]} 28. Kb2 {[%emt 0:01:02]} h5 {[%emt 0:00:00]} 29. f5 {[%emt 0:01:00]} Qe7 {[%emt 0:00:00]} 30. Rxe4 {[%emt 0:01:30]} dxe4 {[%emt 0:00:00]} 31. fxg6 {[%emt 0:00:17]} Qf6+ {[%emt 0:00:00]} 32. Qc3 {[%emt 0:00:51]} Qxg6 {[%emt 0:00:00]} 33. Kc1 {[%emt 0:00:32]} Qf5 {[%emt 0:00:00]} 34. Qe3 {[%emt 0:00:16]} a5 {[%emt 0:00:00]} 35. a4 {[%emt 0:00:19]} Kf8 {[%emt 0:00:00]} 36. Kd2 {[%emt 0:00:45]} Qd5+ {[%emt 0:00:00]} 37. Ke2 {[%emt 0:00:22]} Qc6 {[%emt 0:00:00]} 38. Kd2 {[%emt 0:00:03]} Qd5+ {[%emt 0:00:00]} 39. Ke2 {[%emt 0:00:31]} Qe5 {[%emt 0:00:00]} 40. Qb6 {[%emt 0:00:28]} Qf5 {[%emt 0:00:00]} 41. Qxb7 {[%emt 0:01:10]} Qf3+ {[%emt 0:00:00]} 42. Ke1 {[%emt 0:00:08]} Qh1+ {[%emt 0:00:00]} 43. Ke2 {[%emt 0:00:23]} Qxh2+ {[%emt 0:00:00]} 44. Kd1 {[%emt 0:00:17]} Qh1+ {[%emt 0:00:00]} 45. Ke2 {[%emt 0:00:08]} Qf3+ {[%emt 0:00:00]} 46. Ke1 {[%emt 0:00:27]} Qxg3+ {[%emt 0:00:00]} 0-1

[Event "51st La Roda Open 2025"]
[Site "La Roda"]
[Date "2025.04.17"]
[Round "5.8"]
[White "Mafra, Kaiser Luiz"]
[Black "Sierra Vallina, Lionel"]
[Result "0-1"]
[Annotator "RC"]
[ECO "B50"]
[WhiteElo "2098"]
[BlackElo "2342"]
[PlyCount "54"]
[EventDate "2025.04.15"]
[EventType "swiss"]
[EventCountry "ESP"]
[SourceTitle "playchess.com"]
[Source "ChessBase"]
[SourceQuality "1"]
[TimeControl "5400+30"]

1. e4 {[%emt 0:00:04]} c5 {[%emt 0:00:23]} 2. Nc3 {[%emt 0:00:06]} Nc6 {[%emt 0:00:05]} 3. Nf3 {[%emt 0:00:05]} d6 {[%emt 0:02:56]} 4. b3 {[%emt 0:01:05]} Nf6 {[%emt 0:05:37]} 5. Bb2 {[%emt 0:00:05]} e6 {[%emt 0:00:37]} 6. g3 {[%emt 0:01:12]} d5 {[%emt 0:06:02]} 7. d3 {[%emt 0:02:02]} d4 {[%emt 0:06:55]} 8. Ne2 {[%emt 0:00:39]} e5 {[%emt 0:00:39]} 9. Bg2 {[%emt 0:00:07]} Be7 {[%emt 0:04:01]} 10. O-O {[%emt 0:01:15]} O-O {[%emt 0:00:40]} 11. h3 {[%emt 0:00:59]} Ne8 {[%emt 0:05:21]} 12. Nh2 {[%emt 0:00:18]} Be6 {[%emt 0:00:19]} 13. f4 {[%emt 0:00:09]} f6 {[%emt 0:00:03]} 14. f5 {[%emt 0:00:17]} Bf7 {[%emt 0:00:07]} 15. g4 {[%emt 0:00:07]} b5 {[%emt 0:07:46]} 16. h4 {[%emt 0:01:43]} c4 {[%emt 0:01:10]} 17. Ng3 {[%emt 0:00:25]} Rc8 {[%emt 0:04:30]} 18. Nf3 {[%emt 0:02:07]} cxd3 {[%emt 0:04:37]} 19. cxd3 {[%emt 0:01:55]} Nb4 {[%emt 0:06:57]} 20. Rf2 {[%emt 0:00:23]} a5 {[%emt 0:00:05]} 21. g5 {[%emt 0:04:55]} fxg5 {[%emt 0:09:01]} 22. hxg5 {[%emt 0:04:07]} Bxg5 {[%emt 0:00:52]} 23. Nxg5 {[%emt 0:00:51]} Qxg5 {[%emt 0:00:05]} 24. Kh2 {[%emt 0:01:51]} Nf6 {[%emt 0:00:49]} 25. Bh3 {[%emt 0:01:12]} Qe3 {[%emt 0:02:15]} 26. Rf3 {[%emt 0:06:22]} Rc2+ {[%emt 0:00:29]} 27. Qxc2 {[%emt 0:01:35]} Qxf3 {[%emt 0:00:40]} 0-1